fUSD/lending_fUSD_20241106
["ID","MTS","AMOUNT","RATE_DAILY","PERIOD"]
[341480662,1730920296183,-500.0,0.0003041,2]
[341480663,1730920296192,-1961.14,0.0003041,2]
[341480664,1730920296202,-2553.79,0.0003041,2]
[341480665,1730920296211,-933.76,0.0003041,2]
[341480666,1730920296222,-619.47,0.0003041,2]
[341480667,1730920296231,-1552.17,0.0003041,2]
[341480668,1730920296241,-852.71,0.0003041,2]
[341480669,1730920296252,-985.31,0.0003041,2]
[341480670,1730920296263,-500.0,0.0003041,2]
[341480671,1730920296274,-500.0,0.0003041,2]
[341480672,1730920296284,-1319.54,0.0003041,2]
[341480673,1730920296294,-544.73,0.0003041,2]
[341480674,1730920296303,-1040.45,0.0003041,2]
[341480675,1730920296314,-1047.75,0.0003041,2]
[341480676,1730920296324,-1243.71,0.0003041,2]
[341480677,1730920296334,-809.24,0.0003041,2]
[341480678,1730920296344,-508.7,0.0003041,2]
[341480679,1730920296353,-1768.07,0.0003041,2]
[341480680,1730920296365,-3662.42,0.0003041,2]
[341480681,1730920296376,-2961.59,0.0003041,2]
[341480682,1730920296385,-626.81,0.0003041,2]
[341480683,1730920296394,-543.01,0.0003041,2]
[341480684,1730920296403,-706.05,0.0003041,2]
[341480685,1730920296414,-255.62331717,0.0003041,2]
[341480686,1730920296425,-651.62,0.0003041,2]
[341480687,1730920296435,-2251.89,0.0003041,2]
[341480688,1730920296447,-1884.31,0.0003041,2]
[341480689,1730920296459,-732.87,0.0003041,2]
[341480690,1730920296468,-500.0,0.0003041,2]
[341480691,1730920296478,-2703.76,0.0003041,2]
[341480692,1730920296490,-730.51,0.0003041,2]
[341480693,1730920296501,-759.2,0.0003041,2]
[341480694,1730920296511,-601.73,0.0003041,2]
[341480695,1730920296521,-1846.6,0.0003041,2]
[341480696,1730920296533,-500.0,0.0003041,2]
[341480697,1730920296544,-500.0,0.0003041,2]
[341480698,1730920296554,-2388.47,0.0003041,2]
[341480699,1730920296564,-217.442755,0.0003041,2]
[341480700,1730920296575,-1087.87,0.0003041,2]
[341480701,1730920296586,-10275.63,0.0003041,2]
[341480702,1730920296597,-500.0,0.0003041,2]
[341480703,1730920296607,-228.879307,0.0003041,2]
[341480704,1730920296618,-1027.83,0.0003041,2]
[341480705,1730920296629,-934.72,0.0003041,2]
[341480706,1730920296641,-500.0,0.0003041,2]
[341480707,1730920296650,-680.02,0.0003041,2]
[341480708,1730920296659,-984.02,0.0003041,2]
[341480709,1730920296670,-2654.17,0.0003041,2]
[341480710,1730920296682,-500.0,0.0003041,2]
[341480711,1730920296692,-763.29,0.0003041,2]
[341480712,1730920296701,-2923.01,0.0003041,2]
[341480713,1730920296712,-500.0,0.0003041,2]
[341480714,1730920296721,-250.49653337,0.0003041,2]
[341480715,1730920296730,-1057.64,0.0003041,2]
[341480716,1730920296741,-500.0,0.0003041,2]
[341480717,1730920296750,-500.0,0.0003041,2]
[341480718,1730920296759,-500.0,0.0003041,2]
[341480719,1730920296769,-669.62,0.0003041,2]
[341480720,1730920296779,-718.6,0.0003041,2]
[341480721,1730920296788,-500.0,0.0003041,2]
[341480722,1730920296798,-3084.36,0.0003041,2]
[341480723,1730920296807,-500.0,0.0003041,2]
[341480724,1730920296817,-727.89,0.0003041,2]
[341480725,1730920296826,-1861.65,0.0003041,2]
[341480726,1730920296836,-36940.57,0.0003041,2]
[341480727,1730920296845,-1316.34,0.0003041,2]
[341480728,1730920296854,-3009.75,0.0003041,2]
[341480729,1730920296864,-500.0,0.0003041,2]
[341480730,1730920296873,-500.0,0.0003041,2]
[341480731,1730920296883,-1149.45,0.0003041,2]
[341480732,1730920296893,-500.0,0.0003041,2]
[341480733,1730920296902,-4459.35,0.0003041,2]
[341480734,1730920296912,-539.21,0.0003041,2]
[341480735,1730920296922,-580.25,0.0003041,2]
[341480736,1730920296932,-1631.52,0.0003041,2]
[341480737,1730920296942,-777.39,0.0003041,2]
[341480738,1730920296951,-6541.84,0.0003041,2]
[341480739,1730920296961,-500.0,0.0003041,2]
[341480740,1730920296970,-500.0,0.0003041,2]
[341480741,1730920296980,-2448.68,0.0003041,2]
[341480742,1730920296989,-1611.55,0.0003041,2]
[341480743,1730920296998,-1675.07,0.0003041,2]
[341480744,1730920297007,-2842.56,0.0003041,2]
[341480745,1730920297017,-2090.64,0.0003041,2]
[341480746,1730920297026,-729.17,0.0003041,2]
[341480747,1730920297036,-4119.94,0.0003041,2]
[341480748,1730920297045,-1561.32,0.0003041,2]
[341480749,1730920297054,-164.49449848,0.0003041,2]
[341480750,1730920297064,-500.0,0.0003041,2]
[341480751,1730920297073,-1446.82,0.0003041,2]
[341480752,1730920297083,-908.03,0.0003041,2]
[341480753,1730920297092,-151.0,0.0003041,7]
[341480754,1730920297102,-1649.61,0.0003041,2]
[341480755,1730920297111,-3168.62,0.0003041,2]
[341480756,1730920297121,-3106.24,0.0003041,2]
[341480757,1730920297132,-731.26,0.0003041,2]
[341480758,1730920297141,-3266.44,0.0003041,2]
[341480759,1730920297151,-500.0,0.0003041,2]
[341480760,1730920297160,-752.29,0.0003041,2]
[341480761,1730920297169,-714.92,0.0003041,2]
[341480762,1730920297179,-2478.44,0.0003041,2]
[341480763,1730920297188,-645.24,0.0003041,2]
[341480764,1730920297198,-822.65,0.0003041,2]
[341480765,1730920297207,-2093.22,0.0003041,2]
[341480766,1730920297217,-6208.06,0.0003041,2]
[341480767,1730920297226,-1251.86,0.0003041,2]
[341480768,1730920297236,-2267.91,0.0003041,2]
[341480769,1730920297245,-932.36,0.0003041,2]
[341480770,1730920297254,-1161.0,0.0003041,2]
[341480771,1730920297264,-831.94,0.0003041,2]
[341480772,1730920297274,-726.61,0.0003041,2]
[341480773,1730920297283,-500.0,0.0003041,2]
[341480774,1730920297292,-627.41,0.0003041,2]
[341480775,1730920297302,-1820.52,0.0003041,2]
[341480776,1730920297311,-1064.72,0.0003041,2]
[341480777,1730920297320,-1990.87,0.0003041,2]
[341480778,1730920297330,-750.06,0.0003041,2]
[341480779,1730920297339,-500.0,0.0003041,2]
[341480780,1730920297349,-10580.04,0.0003041,2]
[341480781,1730920297358,-1538.2,0.0003041,2]
[341480782,1730920297367,-5050.46,0.0003041,2]
[341480783,1730920297378,-1128.8,0.0003041,2]
[341480784,1730920297387,-7716.34,0.0003041,2]
[341480785,1730920297396,-3986.66,0.0003041,2]
[341480786,1730920297406,-656.74,0.0003041,2]
[341480787,1730920297416,-500.63,0.0003041,2]
[341480788,1730920297425,-5027.84,0.0003041,2]
[341480789,1730920297435,-4036.63,0.0003041,2]
[341480790,1730920297444,-6250.81,0.0003041,2]
[341480791,1730920297453,-314.7513687,0.0003041,2]
[341480792,1730920297463,-934.04,0.0003041,2]
[341480793,1730920297472,-500.0,0.0003041,2]
[341480794,1730920297482,-500.0,0.0003041,2]
[341480795,1730920297492,-2428.87,0.0003041,2]
[341480796,1730920297501,-3700.97,0.0003041,2]
[341480797,1730920297511,-1135.07,0.0003041,2]
[341480798,1730920297520,-3817.82,0.0003041,2]
[341480799,1730920297529,-3046.7,0.0003041,2]
[341480800,1730920297538,-740.35,0.0003041,2]
[341480801,1730920297548,-3060.48,0.0003041,2]
[341480802,1730920297557,-500.0,0.0003041,2]
[341480803,1730920297566,-1194.34,0.0003041,2]
[341480804,1730920297576,-3836.62,0.0003041,2]
[341480805,1730920297585,-4916.89,0.0003041,2]
[341480806,1730920297595,-3245.5,0.0003041,2]
[341480807,1730920297604,-151.0,0.0003041,7]
[341480808,1730920297614,-1506.02,0.0003041,2]
[341480809,1730920297623,-2015.43,0.0003041,2]
[341480810,1730920297637,-500.0,0.0003041,2]
[341480811,1730920297646,-1997.41,0.0003041,2]
[341480812,1730920297655,-548.49,0.0003041,2]
[341480813,1730920297664,-500.0,0.0003041,2]
[341480814,1730920297674,-1188.15,0.0003041,2]
[341480815,1730920297684,-500.0,0.0003041,2]
[341480816,1730920297693,-3551.02,0.0003041,2]
[341480817,1730920297703,-151.0,0.0003041,7]
[341480818,1730920297714,-9431.91,0.0003041,2]
[341480819,1730920297723,-543.87,0.0003041,2]
[341480820,1730920297733,-500.0,0.0003041,2]
[341480821,1730920297742,-2959.67,0.0003041,2]
[341480822,1730920297752,-843.81,0.0003041,2]
[341480823,1730920297761,-151.0,0.0003041,7]
[341480824,1730920297770,-2985.74,0.0003041,2]
[341480825,1730920297779,-643.72,0.0003041,2]
[341480826,1730920297789,-642.61,0.0003041,2]
[341480827,1730920297798,-151.0,0.0003041,7]
[341480828,1730920297807,-528.21,0.0003041,2]
[341480829,1730920297817,-511.74556378,0.0003041,2]
[341480830,1730920297827,-2640.34,0.0003041,2]
[341480831,1730920297838,-3511.16,0.0003041,2]
[341480832,1730920297851,-636.38,0.0003041,2]
[341480833,1730920297860,-500.0,0.0003041,2]
[341480834,1730920297871,-836.94,0.0003041,2]
[341480835,1730920297884,-817.7,0.0003041,2]
[341480836,1730920297896,-1645.62,0.0003041,2]
[341480837,1730920297906,-500.0,0.0003041,2]
[341480838,1730920297915,-1697.61,0.0003041,2]
[341480839,1730920297925,-1293.6,0.0003041,2]
[341480840,1730920297934,-643.83,0.0003041,2]
[341480841,1730920297944,-2894.45,0.0003041,2]
[341480842,1730920297953,-820.62,0.0003041,2]
[341480843,1730920297963,-500.0,0.0003041,2]
[341480844,1730920297972,-500.0,0.0003041,2]
[341480845,1730920297982,-322.35,0.00030458,2]
[341480846,1730920297992,-150.0,0.0003053,2]
[341480847,1730920298002,-2009.13,0.00030537,2]
[341480848,1730920298011,-150.0,0.00030539,2]
[341480849,1730920298022,-150.0,0.00030616,2]
[341480850,1730920298034,-1500.0,0.00030625,2]
[341480851,1730920298044,-150.0,0.00030672,2]
[341480852,1730920298054,-150.0,0.0003068,2]
[341480853,1730920298065,-661.67,0.00030683,2]
[341480854,1730920298076,-500.0,0.00030684,2]
[341480855,1730920298086,-2920.66,0.00030684,2]
[341480856,1730920298388,-614.25,0.00030684,2]
[341480857,1730920298415,-436.7492369,0.00030684,2]
[341480858,1730920298426,-500.0,0.00030684,2]
[341480859,1730920298439,-574.18,0.00030684,2]
[341480860,1730920298450,-1205.75,0.00030684,2]
[341480861,1730920298460,-750.76,0.00030684,2]
[341480862,1730920298470,-500.0,0.00030684,2]
[341480863,1730920298479,-1062.35,0.00030684,2]
[341480864,1730920298489,-997.57,0.00030684,2]
[341480865,1730920298498,-500.0,0.00030684,2]
[341480866,1730920298508,-500.0,0.00030684,2]
[341480867,1730920298517,-500.0,0.00030684,2]
[341480868,1730920298526,-500.0,0.00030684,2]
[341480869,1730920298537,-1292.06,0.00030684,2]
[341480870,1730920298546,-500.0,0.00030684,2]
[341480871,1730920298556,-500.0,0.00030684,2]
[341480872,1730920298566,-500.0,0.00030684,2]
[341480873,1730920298576,-1826.45,0.00030684,2]
[341480874,1730920298586,-621.32,0.00030684,2]
[341480875,1730920298596,-383.14980549,0.00030684,2]
[341480876,1730920298605,-663.78,0.00030684,2]
[341480877,1730920298615,-546.43,0.00030684,2]
[341480878,1730920298624,-617.91,0.00030684,2]
[341480879,1730920298636,-1790.04,0.00030684,2]
[341480880,1730920298646,-500.0,0.00030684,2]
[341480881,1730920298656,-500.0,0.00030684,2]
[341480882,1730920298665,-1554.56,0.00030684,2]
[341480883,1730920298674,-525.88,0.00030684,2]
[341480884,1730920298685,-500.0,0.00030684,2]
[341480885,1730920298694,-711.29,0.00030684,2]
[341480886,1730920298704,-1234.48,0.00030684,2]
[341480887,1730920298715,-500.0,0.00030684,2]
[341480888,1730920298727,-500.0,0.00030684,2]
[341480889,1730920298737,-1153.06,0.00030684,2]
[341480890,1730920298746,-500.0,0.00030684,2]
[341480891,1730920298756,-957.34,0.00030684,2]
[341480892,1730920298765,-500.0,0.00030684,2]
[341480893,1730920298775,-500.0,0.00030684,2]
[341480894,1730920298784,-1196.66,0.00030684,2]
[341480895,1730920298793,-1001.64,0.00030684,2]
[341480896,1730920298803,-1472.58,0.00030684,2]
[341480897,1730920298812,-500.0,0.00030684,2]
[341480898,1730920298822,-1605.02,0.00030684,2]
[341480899,1730920298831,-271.12,0.00030684,2]
[341480900,1730920298840,-652.62,0.00030684,2]
[341480901,1730920298850,-500.0,0.00030684,2]
[341480902,1730920298859,-1379.21,0.00030684,2]
[341480903,1730920298868,-1209.69,0.00030684,2]
[341480904,1730920298878,-1638.01,0.00030684,2]
[341480905,1730920298887,-500.0,0.00030684,2]
[341480906,1730920298897,-1179.88,0.00030684,2]
[341480907,1730920298906,-500.0,0.00030684,2]
[341480908,1730920298915,-639.69,0.00030684,2]
[341480909,1730920298924,-600.21,0.00030684,2]
[341480910,1730920298934,-500.0,0.00030684,2]
[341480911,1730920298943,-384.61512632,0.00030684,2]
[341480912,1730920298953,-500.0,0.00030684,2]
[341480913,1730920298962,-912.36,0.00030684,2]
[341480914,1730920298971,-500.0,0.00030684,2]
[341480915,1730920298980,-508.65,0.00030684,2]
[341480916,1730920298990,-500.0,0.00030684,2]
[341480917,1730920298999,-500.0,0.00030684,2]
[341480918,1730920299009,-610.62,0.00030684,2]
[341480919,1730920299018,-500.0,0.00030684,2]
[341480920,1730920299028,-500.0,0.00030684,2]
[341480921,1730920299037,-500.0,0.00030684,2]
[341480922,1730920299047,-500.0,0.00030684,2]
[341480923,1730920299057,-1403.53,0.00030684,2]
[341480924,1730920299067,-951.98,0.00030684,2]
[341480925,1730920299077,-1718.49,0.00030684,2]
[341480926,1730920299086,-500.0,0.00030684,2]
[341480927,1730920299096,-770.26,0.00030684,2]
[341480928,1730920299105,-534.23,0.00030684,2]
[341480929,1730920299115,-886.88,0.00030684,2]
[341480930,1730920299124,-500.0,0.00030684,2]
[341480931,1730920299136,-500.0,0.00030684,2]
[341480932,1730920299145,-3128.73,0.00030684,2]
[341480933,1730920299155,-591.92,0.00030684,2]
[341480934,1730920299164,-1587.38,0.00030684,2]
[341480935,1730920299174,-312.45709866,0.00030684,2]
[341480936,1730920299183,-672.38,0.00030684,2]
[341480937,1730920299193,-1225.74,0.00030684,2]
[341480938,1730920299203,-151.0,0.00030684,7]
[341480939,1730920299212,-631.72,0.00030684,2]
[341480940,1730920299222,-577.47511617,0.00030684,2]
[341480941,1730920299231,-1710.63,0.00030684,2]
[341480942,1730920299241,-222.734236,0.00030684,7]
[341480943,1730920299250,-813.74,0.00030684,2]
[341480944,1730920299260,-500.0,0.00030684,2]
[341480945,1730920299270,-500.0,0.00030684,2]
[341480946,1730920299279,-500.0,0.00030684,2]
[341480947,1730920299288,-747.59,0.00030684,2]
[341480948,1730920299298,-1093.9,0.00030684,2]
[341480949,1730920299307,-500.0,0.00030684,2]
[341480950,1730920299316,-500.0,0.00030684,2]
[341480951,1730920299327,-500.0,0.00030684,2]
[341480952,1730920299338,-500.0,0.00030684,2]
[341480953,1730920299348,-559.12,0.00030684,2]
[341480954,1730920299357,-151.0,0.00030684,7]
[341480955,1730920299368,-500.0,0.00030684,2]
[341480956,1730920299379,-869.22,0.00030684,2]
[341480957,1730920299390,-151.0,0.00030684,7]
[341480958,1730920299399,-815.31,0.00030684,2]
[341480959,1730920299410,-828.15,0.00030684,2]
[341480960,1730920299419,-151.0,0.00030684,7]
[341480961,1730920299428,-948.69,0.00030684,2]
[341480962,1730920299438,-500.0,0.00030684,2]
[341480963,1730920299447,-151.0,0.00030684,7]
[341480964,1730920299456,-500.0,0.00030684,2]
[341480965,1730920299465,-6450.1,0.00030684,2]
[341480966,1730920299475,-712.2,0.00030684,2]
[341480967,1730920299484,-195.67743071,0.00030684,2]
[341480968,1730920299493,-1961.14,0.00030684,2]
[341480969,1730920299503,-2553.79,0.00030684,2]
[341480970,1730920299512,-933.76,0.00030684,2]
[341480971,1730920299522,-619.47,0.00030684,2]
[341480972,1730920299532,-290.029731,0.00030684,7]
[341480973,1730920299541,-1552.17,0.00030684,2]
[341480974,1730920299551,-852.71,0.00030684,2]
[341480975,1730920299560,-985.31,0.00030684,2]
[341480976,1730920299569,-500.0,0.00030684,2]
[341480977,1730920299579,-234.076632,0.00030684,7]
[341480978,1730920299587,-500.0,0.00030684,2]
[341480979,1730920299597,-1319.54,0.00030684,2]
[341480980,1730920299606,-234.076632,0.00030684,7]
[341480981,1730920299616,-175.088611,0.00030684,7]
[341480982,1730920299625,-201.220383,0.00030684,7]
[341480983,1730920299638,-544.73,0.00030684,2]
[341480984,1730920299647,-1040.45,0.00030684,2]
[341480985,1730920299656,-175.088611,0.00030684,7]
[341480986,1730920299666,-201.220383,0.00030684,7]
[341480987,1730920299676,-1047.75,0.00030684,2]
[341480988,1730920299686,-1243.71,0.00030684,2]
[341480989,1730920299697,-809.24,0.00030684,2]
[341480990,1730920299708,-508.7,0.00030684,2]
[341480991,1730920299722,-1768.07,0.00030684,2]
[341480992,1730920299734,-3662.42,0.00030684,2]
[341480993,1730920299745,-2961.59,0.00030684,2]
[341480994,1730920299755,-626.81,0.00030684,2]
[341480995,1730920299766,-543.01,0.00030684,2]
[341480996,1730920299776,-706.05,0.00030684,2]
[341480997,1730920299786,-280.903323,0.00030684,7]
[341480998,1730920299795,-651.62,0.00030684,2]
[341480999,1730920299805,-2251.89,0.00030684,2]
[341481000,1730920299814,-1884.31,0.00030684,2]
[341481001,1730920299823,-280.903323,0.00030684,7]
[341481002,1730920299833,-732.87,0.00030684,2]
[341481003,1730920299843,-500.0,0.00030684,2]
[341481004,1730920299854,-151.0,0.00030684,7]
[341481005,1730920299865,-2703.76,0.00030684,2]
[341481006,1730920299876,-730.51,0.00030684,2]
[341481007,1730920299886,-151.0,0.00030684,7]
[341481008,1730920299895,-759.2,0.00030684,2]
[341481009,1730920299905,-601.73,0.00030684,2]
[341481010,1730920299915,-4472.046259,0.00030684,7]
[341481011,1730920299924,-1846.6,0.00030684,2]
[341481012,1730920299934,-500.0,0.00030684,2]
[341481013,1730920299943,-2388.47,0.00030684,2]
[341481014,1730920299953,-500.0,0.00030684,2]
[341481015,1730920299963,-4472.046259,0.00030684,7]
[341481016,1730920299972,-217.442755,0.00030684,2]
[341481017,1730920299982,-1087.87,0.00030684,2]
[341481018,1730920299991,-10275.63,0.00030684,2]
[341481019,1730920300002,-641.39973066,0.00030684,2]
[341481020,1730920300011,-228.879307,0.00030684,2]
[341481021,1730920300020,-1027.83,0.00030684,2]
[341481022,1730920300029,-934.72,0.00030684,2]
[341481023,1730920300039,-500.0,0.00030684,2]
[341481024,1730920300049,-152.709932,0.00030684,2]
[341481025,1730920300058,-680.02,0.00030684,2]
[341481026,1730920300068,-984.02,0.00030684,2]
[341481027,1730920300078,-151.0,0.00030684,7]
[341481028,1730920300088,-2654.17,0.00030684,2]
[341481029,1730920300097,-500.0,0.00030684,2]
[341481030,1730920300107,-763.29,0.00030684,2]
[341481031,1730920300116,-2923.01,0.00030684,2]
[341481032,1730920300126,-500.0,0.00030684,2]
[341481033,1730920300135,-1057.64,0.00030684,2]
[341481034,1730920300145,-500.0,0.00030684,2]
[341481035,1730920300154,-500.0,0.00030684,2]
[341481036,1730920300164,-500.0,0.00030684,2]
[341481037,1730920300173,-151.0,0.00030684,7]
[341481038,1730920300183,-669.62,0.00030684,2]
[341481039,1730920300193,-718.6,0.00030684,2]
[341481040,1730920300204,-175.27347697,0.00030684,2]
[341481041,1730920300213,-3084.36,0.00030684,2]
[341481042,1730920300222,-500.0,0.00030684,2]
[341481043,1730920300231,-727.89,0.00030684,2]
[341481044,1730920300241,-1861.65,0.00030684,2]
[341481045,1730920300250,-36940.57,0.00030684,2]
[341481046,1730920300260,-1316.34,0.00030684,2]
[341481047,1730920300269,-3009.75,0.00030684,2]
[341481048,1730920300279,-500.0,0.00030684,2]
[341481049,1730920300289,-500.0,0.00030684,2]
[341481050,1730920300299,-500.0,0.00030684,2]
[341481051,1730920300309,-151.0,0.00030684,7]
[341481052,1730920300319,-1149.45,0.00030684,2]
[341481053,1730920300329,-4459.35,0.00030684,2]
[341481054,1730920300339,-539.21,0.00030684,2]
[341481055,1730920300349,-580.25,0.00030684,2]
[341481056,1730920300358,-1631.52,0.00030684,2]
[341481057,1730920300367,-151.0,0.00030684,7]
[341481058,1730920300378,-777.39,0.00030684,2]
[341481059,1730920300387,-6541.84,0.00030684,2]
[341481060,1730920300397,-500.0,0.00030684,2]
[341481061,1730920300406,-500.0,0.00030684,2]
[341481062,1730920300416,-2448.68,0.00030684,2]
[341481063,1730920300425,-1611.55,0.00030684,2]
[341481064,1730920300435,-1675.07,0.00030684,2]
[341481065,1730920300444,-2842.56,0.00030684,2]
[341481066,1730920300453,-2090.64,0.00030684,2]
[341481067,1730920300462,-729.17,0.00030684,2]
[341481068,1730920300472,-4119.94,0.00030684,2]
[341481069,1730920300481,-1561.32,0.00030684,2]
[341481070,1730920300491,-500.0,0.00030684,2]
[341481071,1730920300500,-1446.82,0.00030684,2]
[341481072,1730920300509,-908.03,0.00030684,2]
[341481073,1730920300519,-1649.61,0.00030684,2]
[341481074,1730920300529,-3168.62,0.00030684,2]
[341481075,1730920300538,-731.26,0.00030684,2]
[341481076,1730920300547,-3106.24,0.00030684,2]
[341481077,1730920300557,-3266.44,0.00030684,2]
[341481078,1730920300567,-500.0,0.00030684,2]
[341481079,1730920300577,-752.29,0.00030684,2]
[341481080,1730920300586,-2478.44,0.00030684,2]
[341481081,1730920300596,-714.92,0.00030684,2]
[341481082,1730920300606,-645.24,0.00030684,2]
[341481083,1730920300616,-822.65,0.00030684,2]
[341481084,1730920300625,-2093.22,0.00030684,2]
[341481085,1730920300638,-6208.06,0.00030684,2]
[341481086,1730920300647,-1251.86,0.00030684,2]
[341481087,1730920300657,-2267.91,0.00030684,2]
[341481088,1730920300666,-232.979067,0.00030684,7]
[341481089,1730920300676,-932.36,0.00030684,2]
[341481090,1730920300686,-1161.0,0.00030684,2]
[341481091,1730920300695,-831.94,0.00030684,2]
[341481092,1730920300705,-726.61,0.00030684,2]
[341481093,1730920300716,-500.0,0.00030684,2]
[341481094,1730920300725,-627.41,0.00030684,2]
[341481095,1730920300735,-1820.52,0.00030684,2]
[341481096,1730920300746,-1064.72,0.00030684,2]
[341481097,1730920300755,-1990.87,0.00030684,2]
[341481098,1730920300764,-750.06,0.00030684,2]
[341481099,1730920300774,-500.0,0.00030684,2]
[341481100,1730920300783,-10580.04,0.00030684,2]
[341481101,1730920300793,-1538.2,0.00030684,2]
[341481102,1730920300802,-5050.46,0.00030684,2]
[341481103,1730920300811,-1128.8,0.00030684,2]
[341481104,1730920300820,-7716.34,0.00030684,2]
[341481105,1730920300829,-155.840938,0.00030684,7]
[341481106,1730920300839,-3986.66,0.00030684,2]
[341481107,1730920300848,-656.74,0.00030684,2]
[341481108,1730920300857,-500.63,0.00030684,2]
[341481109,1730920300866,-5027.84,0.00030684,2]
[341481110,1730920300876,-4036.63,0.00030684,2]
[341481111,1730920300885,-6250.81,0.00030684,2]
[341481112,1730920300895,-934.04,0.00030684,2]
[341481113,1730920300904,-500.0,0.00030684,2]
[341481114,1730920300914,-500.0,0.00030684,2]
[341481115,1730920300924,-2428.87,0.00030684,2]
[341481116,1730920300933,-3700.97,0.00030684,2]
[341481117,1730920300942,-1135.07,0.00030684,2]
[341481118,1730920300953,-3817.82,0.00030684,2]
[341481119,1730920300963,-3046.7,0.00030684,2]
[341481120,1730920300975,-740.35,0.00030684,2]
[341481121,1730920300986,-3060.48,0.00030684,2]
[341481122,1730920300996,-500.0,0.00030684,2]
[341481123,1730920301006,-1194.34,0.00030684,2]
[341481124,1730920301016,-3836.62,0.00030684,2]
[341481125,1730920301027,-4916.89,0.00030684,2]
[341481126,1730920301037,-3245.5,0.00030684,2]
[341481127,1730920301047,-1506.02,0.00030684,2]
[341481128,1730920301056,-512.382164,0.00030684,7]
[341481129,1730920301065,-151.0,0.00030684,7]
[341481130,1730920301075,-2015.43,0.00030684,2]
[341481131,1730920301084,-500.0,0.00030684,2]
[341481132,1730920301093,-1997.41,0.00030684,2]
[341481133,1730920301102,-548.49,0.00030684,2]
[341481134,1730920301111,-500.0,0.00030684,2]
[341481135,1730920301120,-1188.15,0.00030684,2]
[341481136,1730920301131,-500.0,0.00030684,2]
[341481137,1730920301147,-512.382164,0.00030684,7]
[341481138,1730920301156,-3551.02,0.00030684,2]
[341481139,1730920301165,-9431.91,0.00030684,2]
[341481140,1730920301174,-543.87,0.00030684,2]
[341481141,1730920301183,-500.0,0.00030684,2]
[341481142,1730920301193,-2959.67,0.00030684,2]
[341481143,1730920301202,-843.81,0.00030684,2]
[341481144,1730920301212,-2985.74,0.00030684,2]
[341481145,1730920301221,-643.72,0.00030684,2]
[341481146,1730920301230,-642.61,0.00030684,2]
[341481147,1730920301239,-528.21,0.00030684,2]
[341481148,1730920301248,-2640.34,0.00030684,2]
[341481149,1730920301258,-3511.16,0.00030684,2]
[341481150,1730920301267,-636.38,0.00030684,2]
[341481151,1730920301277,-500.0,0.00030684,2]
[341481152,1730920301287,-836.94,0.00030684,2]
[341481153,1730920301296,-817.7,0.00030684,2]
[341481154,1730920301306,-1645.62,0.00030684,2]
[341481155,1730920301316,-500.0,0.00030684,2]
[341481156,1730920301325,-1697.61,0.00030684,2]
[341481157,1730920301334,-1293.6,0.00030684,2]
[341481158,1730920301344,-643.83,0.00030684,2]
[341481159,1730920301353,-2894.45,0.00030684,2]
[341481160,1730920301362,-820.62,0.00030684,2]
[341481161,1730920301371,-521.50486968,0.00030684,2]